fUST/lending_fUST_20251223
["ID","MTS","AMOUNT","RATE_DAILY","PERIOD"]
[399566528,1766494238688,-151.0,0.00011265,2]
[399566529,1766494238700,-151.0,0.00011265,2]
[399566530,1766494238716,-7360.60224174,0.000113,2]
[399566531,1766494238725,-434.02,0.00011448,2]
[399566532,1766494238735,-600.0,0.00011451,2]
[399566533,1766494238746,-151.0,0.00011527,2]
[399566534,1766494238755,-151.0,0.00011527,2]
[399566535,1766494238764,-151.0,0.00011527,2]
[399566536,1766494238774,-151.0,0.00011527,2]
[399566537,1766494238787,-814.82,0.00011545,2]
[399566538,1766494238796,-412.3,0.00011604,2]
[399566539,1766494238805,-156.65825647,0.00011626,2]
[399566540,1766494238815,-269.67289472,0.00011627,2]
[399566541,1766494238827,-3511.56345673,0.00011627,2]
[399566542,1766494238839,-370.60755416,0.00011627,2]
[399566562,1766494243395,-476.59,0.00011627,2]
[399566564,1766494243406,-392.46034728,0.00011627,2]
[399566565,1766494243559,-1158.63077934,0.00011627,2]
[399566566,1766494243571,-4692.8644744,0.00011627,2]
[399566567,1766494243583,-15801.0558857,0.00011627,2]
[399566573,1766494246299,-4775.93370931,0.00011627,2]
[399566586,1766495165851,180.0,0.0001121,30]
[399566587,1766495168111,179.61442949,0.0001121,30]
[399566588,1766495170430,239.74295299,0.0001233,30]
[399566589,1766495241136,-313.72046547,8.932e-05,2]
[399566590,1766495241157,-150.0,8.977e-05,2]
[399566591,1766495241179,-150.0,9.022e-05,2]
[399566592,1766495241199,-198.1061758,9.022e-05,2]
[399566593,1766495241219,-546.0,9.022e-05,2]
[399566594,1766495241240,-150.0,9.348e-05,2]
[399566595,1766495241262,-195.0,9.5e-05,2]
[399566596,1766495241283,-223.48,9.773e-05,2]
[399566597,1766495241301,-153.14526623,9.9e-05,2]
[399566598,1766495241320,-300.0,9.958e-05,2]
[399566599,1766495241340,-300.0,9.958e-05,2]
[399566600,1766495241359,-300.0,9.958e-05,2]
[399566601,1766495241379,-1200.0,9.958e-05,2]
[399566602,1766495241400,-500.0,9.959e-05,2]
[399566603,1766495241420,-500.0,9.959e-05,2]
[399566604,1766495241442,-500.0,9.959e-05,2]
[399566605,1766495241463,-573.05233446,9.959e-05,2]
[399566606,1766495241483,-500.0,9.959e-05,2]
[399566607,1766495241503,-500.0,9.959e-05,2]
[399566608,1766495241523,-500.0,9.959e-05,2]
[399566609,1766495241544,-500.0,9.959e-05,2]
[399566610,1766495241566,-500.0,9.959e-05,2]
[399566611,1766495241587,-500.0,9.959e-05,2]
[399566612,1766495241607,-500.0,9.959e-05,2]
[399566613,1766495241627,-500.0,9.959e-05,2]
[399566614,1766495241648,-500.0,9.959e-05,2]
[399566615,1766495241669,-357.93725249,9.959e-05,2]
[399566616,1766495241689,-500.0,9.959e-05,2]
[399566617,1766495241709,-500.0,9.959e-05,2]
[399566618,1766495241730,-387.8531551,9.959e-05,2]
[399566619,1766495241749,-15808.9696404,9.96e-05,2]
[399566620,1766495241770,-297.97,0.00010198,2]
[399566621,1766495241791,-300.0,0.00010394,2]
[399566622,1766495241812,-300.0,0.00010394,2]
[399566623,1766495241833,-300.0,0.00010394,2]
[399566624,1766495241854,-300.0,0.00010394,2]
[399566625,1766495241875,-300.0,0.00010394,2]
[399566626,1766495241896,-300.0,0.00010394,2]
[399566627,1766495241917,-300.0,0.00010394,2]
[399566628,1766495241938,-300.0,0.00010394,2]
[399566629,1766495241960,-300.0,0.00010394,2]
[399566630,1766495241980,-300.0,0.00010394,2]
[399566631,1766495242001,-300.0,0.00010394,2]
[399566632,1766495242023,-300.0,0.00010394,2]
[399566633,1766495242043,-300.0,0.00010394,2]
[399566634,1766495242064,-300.0,0.00010394,2]
[399566635,1766495242085,-300.0,0.00010394,2]
[399566636,1766495242106,-600.0,0.00010394,2]
[399566637,1766495242130,-372.47,0.00010638,2]
[399566638,1766495242150,-949.0,0.00010954,2]
[399566639,1766495242170,-2579.17784983,0.00010964,2]
[399566640,1766495242196,-151.0,0.00010964,2]
[399566641,1766495242217,-151.0,0.00010964,2]
[399566642,1766495242239,-179.770476,0.00010964,2]
[399566643,1766495242261,-177.0,0.00010977,2]
[399566644,1766495242282,-250.0,0.00011,2]
[399566645,1766495242304,-446.96,0.00011064,2]
[399566646,1766495242325,-662.7557713,0.00011394,2]
[399566647,1766495242348,-720.0,0.00011433,2]
[399566648,1766495242370,-521.46,0.0001149,2]
[399566649,1766495242391,-2674.60743027,0.00011512,2]
[399566650,1766495242411,-151.0,0.0001162,2]
[399566651,1766495242431,-151.0,0.0001162,2]
[399566652,1766495242452,-533.88981491,0.0001162,2]
[399566653,1766495242472,-500.0,0.0001162,2]
[399566654,1766495242494,-500.0,0.0001162,2]
[399566655,1766495242514,-500.0,0.0001162,2]
[399566656,1766495242535,-500.0,0.0001162,2]
[399566657,1766495242555,-500.0,0.0001162,2]
[399566658,1766495242576,-500.0,0.0001162,2]
[399566659,1766495242597,-500.0,0.0001162,2]
[399566660,1766495242617,-500.0,0.0001162,2]
[399566661,1766495242638,-500.0,0.0001162,2]
[399566662,1766495242660,-500.0,0.0001162,2]
[399566663,1766495242681,-500.0,0.0001162,2]
[399566664,1766495242702,-500.0,0.0001162,2]
[399566665,1766495242722,-151.0,0.0001162,2]
[399566666,1766495242742,-500.0,0.0001162,2]
[399566667,1766495242763,-151.0,0.0001162,2]
[399566668,1766495242783,-151.0,0.0001162,2]
[399566669,1766495242804,-151.0,0.0001162,2]
[399566670,1766495242824,-151.0,0.0001162,2]
[399566671,1766495242844,-151.0,0.0001162,2]
[399566672,1766495242864,-151.0,0.0001162,2]
[399566673,1766495242884,-151.0,0.0001162,2]
[399566674,1766495242904,-151.0,0.0001162,2]
[399566675,1766495242925,-151.0,0.0001162,2]
[399566676,1766495242946,-151.0,0.0001162,2]
[399566677,1766495242968,-151.0,0.0001162,2]
[399566678,1766495242989,-151.0,0.0001162,2]
[399566679,1766495243009,-68485.84142926,0.00011627,2]
[399566680,1766495243030,-151.0,0.00011627,2]
[399566681,1766495243050,-151.0,0.00011627,2]
[399566682,1766495243071,-3000.0,0.00011828,2]
[399566683,1766495243093,-583.70554501,0.00011847,2]
[399566684,1766495243114,-595.95,0.00011928,2]
[399566685,1766495243139,-1598.37617309,0.00011949,6]
[399566686,1766495243159,-250.0,0.00012,2]
[399566687,1766495243179,-2773.56790519,0.0001206,2]
[399566688,1766495243200,-151.0,0.0001206,2]
[399566689,1766495243221,-151.0,0.0001206,2]
[399566690,1766495243242,-13672.18407294,0.00012129,2]
[399566691,1766495243262,-553.64373807,0.00012168,2]
[399566692,1766495243284,-16191.36420018,0.00012229,2]
[399566695,1766495332760,511.0809258,0.00014866,120]
[399566696,1766495332927,511.0809258,0.00015093,120]
[399566697,1766495333100,408.86474064,0.00015169,120]
[399566698,1766495333264,306.64855548,0.00015321,120]
[399566699,1766495359368,247.96833887,0.000154,120]
[399566700,1766495359588,300.0,0.00010373,120]
[399566701,1766495361298,300.0,0.00010373,120]
[399566702,1766495363016,300.0,0.00010373,120]
[399566753,1766495438454,-150.0,9.014e-05,2]
[399566754,1766495438464,-546.0,9.014e-05,2]
[399566755,1766495438474,-150.0,9.444e-05,2]
[399566756,1766495438484,-150.0,9.873e-05,2]
[399566757,1766495438494,-157.55,0.00010302,2]
[399566758,1766495438503,-196.94,0.00010731,2]
[399566759,1766495438513,-154.96206466,0.00011161,2]
[399566760,1766495438524,-81.36793534,0.00011161,2]
[399566761,1766495438534,-275.72,0.0001159,2]
[399566762,1766495438543,-441.83718087,0.00011984,2]
[399566763,1766495438559,-315.1,0.00012019,2]
[399566764,1766495438568,-300.0,0.00012219,2]
[399566765,1766495438578,-373.10413917,0.00012219,2]
[399566766,1766495438587,-65000.0,0.0001222,2]
[399566767,1766495438599,-278.33851735,0.00012222,2]
[399566768,1766495438608,-151.0,0.00012222,2]
[399566769,1766495438618,-151.0,0.00012222,2]
[399566770,1766495438628,-533.88981491,0.00012222,2]
[399566771,1766495438638,-235.0,0.00012222,2]
[399566772,1766495438647,-2579.17784983,0.00012222,2]
[399566773,1766495438657,-15968.76543371,0.00012229,2]
[399566850,1766495444229,-452.56137049,0.00012219,2]
[399566852,1766495444239,-554.99572551,0.00012229,2]
[399566853,1766495444318,-21936.07251001,0.00012229,2]
[399566856,1766495444508,-93958.42589787,0.00012229,2]
[399566859,1766495444520,-792.54,0.00012229,2]
[399566861,1766495444530,-52466.29015105,0.00012229,2]
[399566910,1766495446450,-19685.95474176,0.00012229,2]
[399566953,1766495447685,-17905.328744,0.00012229,2]
[399566954,1766495447696,-346.38830132,0.00012229,2]
[399566955,1766495609760,151.94,0.000154,120]
[399566994,1766495794773,169.052865,0.00010526,120]
[399567012,1766496510101,158.0,0.000153,120]
[399567085,1766496638514,-150.0,8.983e-05,2]
[399567086,1766496638524,-150.0,9.003e-05,2]
[399567087,1766496638534,-106.0,9.151e-05,2]
[399567088,1766496638547,-54.0,9.151e-05,2]
[399567089,1766496638556,-150.0,9.411e-05,2]
[399567090,1766496638566,-150.0,9.839e-05,2]
[399567091,1766496638575,-150.0,0.00010267,2]
[399567092,1766496638585,-169.052865,0.00010526,2]
[399567093,1766496638595,-150.0,0.00010694,2]
[399567094,1766496638605,-177.0,0.00011003,2]
[399567095,1766496638614,-150.0,0.00011051,2]
[399567096,1766496638624,-2579.17784983,0.00011232,2]
[399567097,1766496638634,-150.0,0.00011511,2]
[399567098,1766496638643,-2674.60743027,0.0001178,2]
[399567099,1766496638652,-166.7,0.00011978,2]
[399567100,1766496638662,-294.55812058,0.00011984,2]
[399567101,1766496638671,-1070.0,0.00011999,2]
[399567103,1766496638681,-2012.12950016,0.00012,2]
[399567106,1766496638691,-300.0,0.00012019,2]
[399567107,1766496638700,-3130.9763406,0.0001202,2]
[399567110,1766496638711,-2067.52850156,0.0001202,2]
[399567460,1766496643588,-353.45353485,0.0001202,2]
[399567473,1766496643699,-691.28634424,0.0001202,2]
[399567475,1766496643710,-660.112334,0.0001202,2]
[399567637,1766497832054,-150.0,8.573e-05,2]
[399567638,1766497832064,-540.0,8.573e-05,2]
[399567639,1766497832073,-150.0,8.937e-05,2]
[399567640,1766497832082,-150.0,9.052e-05,2]
[399567641,1766497832091,-1792.094928,9.168e-05,2]
[399567642,1766497832101,-809.99909511,9.168e-05,2]
[399567643,1766497832113,-1125.90597689,9.168e-05,2]
[399567644,1766497832122,-78.88816819,0.00011052,2]
[399567656,1766497837620,-98.11183181,0.00011052,2]
[399567657,1766497837630,-154.49216668,0.00011653,2]
[399567658,1766497837640,-1052.7362874,0.00011918,2]
[399567659,1766497837677,-147.2637126,0.00011918,2]
[399567660,1766497837686,-300.0,0.00011919,2]
[399567661,1766497837696,-801.0,0.00011919,2]
[399567662,1766497837705,-300.0,0.00011919,2]
[399567663,1766497837714,-300.0,0.00011919,2]
[399567664,1766497837723,-300.0,0.00011919,2]
[399567665,1766497837732,-21.51908575,0.0001192,2]
[399567666,1766497837798,-330.79864556,0.0001192,2]
[399567667,1766497837812,-1149.86202738,0.0001192,2]
[399567668,1766497837823,-8293.70840359,0.0001192,2]
[399567695,1766497844369,-493.30100725,0.0001192,2]
[399567696,1766497844480,-300.0,0.0001192,2]
[399567708,1766498030192,150.0,4.2e-07,2]
[399567709,1766498031236,150.0,4.2e-07,2]
[399567712,1766498437893,150.0,4.5e-07,2]
[399567713,1766498438959,150.0,4.5e-07,2]
[399567714,1766498440002,150.0,4.5e-07,2]
[399567715,1766498971245,-300.0,9.999e-05,2]
[399567716,1766498971269,-150.0,0.0001,2]
[399567717,1766498971290,-7663.07572471,0.0001,2]
[399567718,1766498971312,-358.17478803,0.0001,2]
[399567741,1766499031677,-244.66530576,0.00010965,2]
[399567743,1766499031686,-150.0,0.00011192,2]
[399567746,1766499031698,-117.41677445,0.00011419,2]
[399567751,1766499031737,-212.55683506,0.00011419,2]
[399567753,1766499031746,-1036.9500789,0.00011813,2]
[399567755,1766499031758,-962.90483742,0.00011813,2]
[399567757,1766499031769,-315.76521123,0.00011813,2]
[399567760,1766499031780,-263.55772228,0.00011813,2]
[399567761,1766499031789,-162.78328355,0.00011819,2]
[399567773,1766499037868,-137.21671645,0.00011819,2]
[399567774,1766499037880,-980.46614345,0.0001182,2]
[399567775,1766499037958,-412.0,0.0001182,2]
[399567776,1766499037969,-3330.28168253,0.0001182,2]
[399567777,1766499037979,-22920.82569882,0.0001182,2]
[399567925,1766499043042,-202.71538341,7.329e-05,2]
[399567926,1766499043052,-247.28461659,0.0001182,2]
[399568021,1766499201147,175.0,0.00016484,120]
[399568023,1766500051298,-155.59439718,7.329e-05,2]
[399568027,1766500156085,-47.22229327,7.329e-05,2]
[399568028,1766500156107,-523.0,7.329e-05,2]
[399568029,1766500156131,-150.0,7.623e-05,2]
[399568030,1766500156157,-150.0,8.898e-05,2]
[399568031,1766500156183,-150.0,9.352e-05,2]
[399568032,1766500156205,-177.0,9.623e-05,2]
[399568033,1766500156233,-150.0,9.686e-05,2]
[399568034,1766500156256,-76.71770673,0.00010108,2]
[399568116,1766500238040,-150.0,8.881e-05,2]
[399568118,1766500238051,-150.0,9.304e-05,2]
[399568120,1766500238060,-150.0,9.727e-05,2]
[399568122,1766500238070,-1098.83918175,0.00011227,2]
[399568126,1766500238109,-101.16081825,0.00011227,2]
[399568128,1766500238120,-173.13658777,0.00011227,2]
[399568203,1766500240806,-0.86341223,0.00011227,2]
[399568204,1766500240817,-597.43583801,0.00011228,2]
[399568236,1766501201332,195.0,0.000154,120]
[399568266,1766501432110,-150.0,8.915e-05,2]
[399568268,1766501432120,-152.16,9.34e-05,2]
[399568270,1766501432130,-228.25,9.765e-05,2]
[399568271,1766501432140,-304.33,0.00010189,2]
[399568274,1766501432154,-110.72857982,0.00010757,2]
[399568276,1766501432170,-133.3083921,0.00010757,2]
[399568277,1766501432180,-150.0,0.0001104,2]
[399568278,1766501432190,-197.18986458,0.00011043,2]
[399568314,1766501438315,-380.41,0.00010614,2]
[399568316,1766501438326,-456.49,0.00011038,2]
[399568318,1766501438337,-6.03245925,0.00011043,2]
[399568320,1766501438347,-230.27753532,0.00011128,2]
[399568328,1766501438418,-955.77531054,0.00011128,2]
[399568635,1766501443569,-1540.39242406,0.00011128,2]
[399568680,1766501446488,-26068.76179588,0.00011128,2]
[399568681,1766501686842,8502.97927435,6.892e-05,2]
[399568683,1766501811480,-150.0,0.000154,30]
[399568684,1766501812865,-150.0,0.000154,30]
[399568685,1766501813945,-150.0,0.000154,30]
[399568686,1766501822882,-150.0,0.000154,30]
[399568693,1766502545637,-26.25045219,0.000154,30]
[399568714,1766502632486,-261.0,8.106e-05,2]
[399568715,1766502632498,-591.32639617,8.106e-05,2]
[399568735,1766502638525,-2343.9301915,8.106e-05,2]
[399568736,1766502638539,-1172.85320276,8.106e-05,2]
[399568737,1766502638553,-452.10338069,8.106e-05,2]
[399568999,1766502646587,-178.78682888,8.106e-05,2]
[399569000,1766502646597,-534.0,8.106e-05,2]
[399569001,1766502646606,-150.0,8.147e-05,2]
[399569002,1766502646616,-7.01317112,8.188e-05,2]
[399569003,1766502646666,-292.98682888,8.188e-05,2]
[399569004,1766502646676,-2.47614423,9.099e-05,2]
[399569069,1766503833777,-1080.36649452,8.481e-05,2]
[399569070,1766503833790,-662.01408104,8.481e-05,2]
[399569071,1766503833803,-534.53621124,8.481e-05,2]
[399569105,1766503838735,-2723.0832132,8.481e-05,2]
[399569107,1766503838746,-540.0,8.567e-05,2]
[399569109,1766503838757,-150.0,8.625e-05,2]
[399569111,1766503838768,-300.0,8.683e-05,2]
[399569113,1766503838778,-300.0,8.683e-05,2]
[399569116,1766503838790,-300.0,8.683e-05,2]
[399569118,1766503838800,-300.0,8.683e-05,2]
[399569120,1766503838813,-1200.0,8.683e-05,2]
[399569122,1766503838824,-169.81174469,8.684e-05,2]
[399569124,1766503838835,-305.66114044,8.684e-05,2]
[399569126,1766503838845,-543.39758301,8.684e-05,2]
[399569129,1766503838857,-848.20966472,8.684e-05,2]
[399569131,1766503838868,-300.0,8.856e-05,2]
[399569133,1766503838879,-300.0,8.856e-05,2]
[399569135,1766503838889,-300.0,8.856e-05,2]
[399569137,1766503838900,-300.0,8.856e-05,2]
[399569139,1766503838911,-300.0,8.856e-05,2]
[399569141,1766503838921,-300.0,8.856e-05,2]
[399569143,1766503838932,-300.0,8.856e-05,2]
[399569145,1766503838943,-300.0,8.856e-05,2]
[399569147,1766503838955,-300.0,8.856e-05,2]
[399569150,1766503838965,-300.0,8.856e-05,2]
[399569152,1766503838975,-300.0,8.856e-05,2]
[399569154,1766503838986,-300.0,8.856e-05,2]
[399569156,1766503838995,-300.0,8.856e-05,2]
[399569158,1766503839005,-300.0,8.856e-05,2]
[399569159,1766503839016,-300.0,8.856e-05,2]
[399569161,1766503839028,-600.0,9.032e-05,2]
[399569164,1766503839038,-1200.0,9.139e-05,2]
[399569166,1766503839048,-165.37557103,9.14e-05,2]
[399569168,1766503839062,-50000.0,9.141e-05,2]
[399569170,1766503839073,-312.87167394,9.141e-05,2]
[399569172,1766503839084,-151.0,9.141e-05,2]
[399569174,1766503839095,-151.0,9.141e-05,2]
[399569176,1766503839106,-179.770476,9.141e-05,2]
[399569178,1766503839116,-151.0,9.324e-05,2]
[399569180,1766503839127,-151.0,9.324e-05,2]
[399569182,1766503839137,-151.0,9.324e-05,2]
[399569184,1766503839148,-151.0,9.324e-05,2]
[399569186,1766503839158,-151.0,9.324e-05,2]
[399569188,1766503839169,-151.0,9.324e-05,2]
[399569190,1766503839179,-151.0,9.324e-05,2]
[399569192,1766503839190,-151.0,9.324e-05,2]
[399569194,1766503839200,-2633.28478397,9.324e-05,2]
[399569196,1766503839211,-503.64606496,9.324e-05,2]
[399569198,1766503839221,-151.0,9.326e-05,2]
[399569200,1766503839231,-5426.4982729,9.326e-05,2]
[399569202,1766503839241,-2044.9530247,9.426e-05,2]
[399569204,1766503839251,-68485.8414302,9.508e-05,2]
[399569206,1766503839261,-80.79563022,9.551e-05,2]
[399569316,1766503840824,-339.20436978,9.551e-05,2]
[399569319,1766503840834,-949.0,9.551e-05,2]
[399569321,1766503840845,-2633.28478393,9.743e-05,2]
[399569323,1766503840855,-720.0,9.935e-05,2]
[399569325,1766503840865,-652.94,0.0001,2]
[399569327,1766503840876,-486.49,0.0001,2]
[399569329,1766503840886,-3826.14195378,0.0001,2]
[399569532,1766503846674,-500.0,9.138e-05,2]
[399569534,1766503846685,-500.0,9.138e-05,2]
[399569535,1766503846695,-500.0,9.138e-05,2]
[399569536,1766503846704,-500.0,9.138e-05,2]
[399569537,1766503846714,-500.0,9.138e-05,2]
[399569538,1766503846726,-500.0,9.138e-05,2]
[399569539,1766503846735,-500.0,9.138e-05,2]
[399569540,1766503846745,-500.0,9.138e-05,2]
[399569541,1766503846755,-500.0,9.138e-05,2]
[399569542,1766503846764,-500.0,9.138e-05,2]
[399569543,1766503846774,-500.0,9.138e-05,2]
[399569544,1766503846783,-500.0,9.138e-05,2]
[399569545,1766503846793,-500.0,9.138e-05,2]
[399569546,1766503846802,-500.0,9.138e-05,2]
[399569547,1766503846812,-529.10004648,9.138e-05,2]
[399569548,1766503846825,-500.0,9.138e-05,2]
[399569549,1766503846834,-500.0,9.138e-05,2]
[399569550,1766503846844,-500.0,9.138e-05,2]
[399569551,1766503846854,-500.0,9.138e-05,2]
[399569552,1766503846863,-500.0,9.138e-05,2]
[399569554,1766503846873,-500.0,9.138e-05,2]
[399569555,1766503846882,-500.0,9.138e-05,2]
[399569556,1766503846892,-500.0,9.138e-05,2]
[399569557,1766503846901,-525.30077712,9.138e-05,2]
[399569558,1766503846911,-500.0,9.138e-05,2]
[399569559,1766503846921,-500.0,9.138e-05,2]
[399569560,1766503846930,-500.0,9.138e-05,2]
[399569561,1766503846939,-500.0,9.138e-05,2]
[399569562,1766503846949,-500.0,9.138e-05,2]
[399569563,1766503846958,-500.0,9.138e-05,2]
[399569564,1766503846967,-500.0,9.138e-05,2]
[399569565,1766503846977,-500.0,9.138e-05,2]
[399569566,1766503846987,-500.0,9.138e-05,2]
[399569567,1766503846997,-500.0,9.138e-05,2]
[399569568,1766503847006,-500.0,9.138e-05,2]
[399569569,1766503847016,-500.0,9.138e-05,2]
[399569570,1766503847026,-500.0,9.138e-05,2]
[399569571,1766503847035,-500.0,9.138e-05,2]
[399569572,1766503847044,-500.0,9.138e-05,2]
[399569573,1766503847054,-500.0,9.138e-05,2]
[399569574,1766503847064,-500.0,9.138e-05,2]
[399569575,1766503847075,-500.0,9.138e-05,2]
[399569576,1766503847086,-500.0,9.138e-05,2]
[399569577,1766503847096,-500.0,9.138e-05,2]
[399569578,1766503847107,-500.0,9.138e-05,2]
[399569579,1766503847117,-500.0,9.138e-05,2]
[399569580,1766503847127,-500.0,9.138e-05,2]
[399569581,1766503847137,-500.0,9.138e-05,2]
[399569582,1766503847147,-500.0,9.138e-05,2]
[399569583,1766503847157,-500.0,9.138e-05,2]
[399569584,1766503847167,-500.0,9.138e-05,2]
[399569585,1766503847178,-500.0,9.138e-05,2]
[399569586,1766503847188,-500.0,9.138e-05,2]
[399569587,1766503847198,-500.0,9.138e-05,2]
[399569588,1766503847207,-500.0,9.138e-05,2]
[399569589,1766503847217,-500.0,9.138e-05,2]
[399569590,1766503847227,-500.0,9.138e-05,2]
[399569591,1766503847237,-500.0,9.138e-05,2]
[399569592,1766503847246,-500.0,9.138e-05,2]
[399569593,1766503847256,-500.0,9.138e-05,2]
[399569594,1766503847266,-500.0,9.138e-05,2]
[399569595,1766503847275,-500.0,9.138e-05,2]
[399569596,1766503847285,-500.0,9.138e-05,2]
[399569597,1766503847295,-500.0,9.138e-05,2]
[399569598,1766503847305,-500.0,9.138e-05,2]
[399569599,1766503847315,-500.0,9.138e-05,2]
[399569600,1766503847325,-500.0,9.138e-05,2]
[399569601,1766503847335,-500.0,9.138e-05,2]
[399569602,1766503847344,-500.0,9.138e-05,2]
[399569603,1766503847354,-500.0,9.138e-05,2]
[399569604,1766503847364,-528.21789515,9.138e-05,2]
[399569605,1766503847373,-500.0,9.138e-05,2]
[399569606,1766503847383,-500.0,9.138e-05,2]
[399569607,1766503847392,-3836.93377093,0.0001,2]
[399569608,1766503847402,-152.97183967,0.00010043,2]
[399569609,1766503847413,-2633.28478393,0.00010062,2]
[399569610,1766503847423,-202.81709608,0.0001013,2]
[399569611,1766503847433,-697.45,0.00010153,2]
[399569612,1766503847443,-652.94,0.000102,2]
[399569613,1766503847453,-652.94,0.000104,2]
[399569614,1766503847463,-2633.28478393,0.00010481,2]
[399569615,1766503847473,-587.0,0.00010506,2]
[399569616,1766503847482,-652.94,0.000106,2]
[399569617,1766503847492,-177.0,0.00010625,2]
[399569618,1766503847502,-1394.9,0.00010637,2]
[399569619,1766503847511,-652.94,0.000108,2]
[399569620,1766503847521,-2633.28478393,0.000109,2]
[399569621,1766503847531,-864.0,0.00010929,2]
[399569622,1766503847540,-652.94,0.00011,2]
[399569623,1766503847642,-2092.35,0.0001112,2]
[399569624,1766503847652,-168.94023674,0.00011128,2]
[399569625,1766503847661,-161.81663414,0.00011128,2]
[399569626,1766503847671,-291.26994146,0.00011128,2]
[399569627,1766503847681,-517.81322925,0.00011128,2]
[399569628,1766503847690,-337.84331018,0.00011128,2]
[399569629,1766503847700,-304.09242613,0.00011128,2]
[399569630,1766503847712,-808.27408754,0.00011128,2]
[399569631,1766503847722,-385.72053356,0.00011128,2]
[399569632,1766503847731,-540.60875756,0.00011128,2]
[399569633,1766503847741,-843.8564825,0.00011128,2]
[399569634,1766503847751,-333.5546453,0.00011128,2]
[399569635,1766503847760,-600.39836154,0.00011128,2]
[399569636,1766503847770,-823.958,0.00011261,2]
[399569637,1766503847780,-319.31,0.00011275,2]
[399569638,1766503847790,-167.42,0.00011275,2]
[399569639,1766503847800,-1067.37486495,0.00011366,2]
[399569640,1766503847810,-39041.6647086,0.00011376,2]
[399569641,1766503847822,-9870.17373394,0.00011448,2]
[399569642,1766503847832,-176.742,0.00011527,2]
[399569643,1766503847842,-1000.0,0.00011552,2]
[399569644,1766503847852,-20000.0,0.00011552,2]
[399569645,1766503847862,-1000.0,0.00011552,2]
[399569646,1766503847871,-1000.0,0.00011552,2]
[399569647,1766503847881,-160.0,0.00011552,2]
[399569648,1766503847890,-1000.0,0.00011552,2]
[399569649,1766503847900,-160.0,0.00011552,2]
[399569650,1766503847909,-151.0,0.00011552,2]
[399569651,1766503847918,-1000.0,0.00011552,2]
[399569652,1766503847928,-151.0,0.00011552,2]
[399569653,1766503847937,-160.0,0.00011552,2]
[399569654,1766503847947,-1000.0,0.00011552,2]
[399569655,1766503847956,-151.0,0.00011552,2]
[399569656,1766503847965,-160.0,0.00011552,2]
[399569657,1766503847974,-1000.0,0.00011552,2]
[399569658,1766503847985,-151.0,0.00011552,2]
[399569659,1766503847994,-187.05130533,0.00011552,2]
[399569660,1766503848004,-250.0,0.00011552,2]
[399569661,1766503848015,-1000.0,0.00011552,2]
[399569662,1766503848025,-250.0,0.00011552,2]
[399569663,1766503848036,-151.0,0.00011552,2]
[399569664,1766503848046,-250.0,0.00011552,2]
[399569665,1766503848056,-1000.0,0.00011552,2]
[399569666,1766503848066,-250.0,0.00011552,2]
[399569667,1766503848079,-533.88981491,0.00011552,2]
[399569668,1766503848090,-151.0,0.00011552,2]
[399569669,1766503848100,-246.84985962,0.00011552,2]
[399569670,1766503848110,-250.0,0.00011552,2]
[399569671,1766503848120,-1000.0,0.00011552,2]
[399569672,1766503848130,-151.0,0.00011552,2]
[399569673,1766503848140,-250.0,0.00011552,2]
[399569674,1766503848150,-1000.0,0.00011552,2]
[399569675,1766503848160,-151.0,0.00011552,2]
[399569676,1766503848169,-250.0,0.00011552,2]
[399569677,1766503848179,-1000.0,0.00011552,2]
[399569678,1766503848188,-151.0,0.00011552,2]
[399569679,1766503848198,-250.0,0.00011552,2]
[399569680,1766503848207,-1000.0,0.00011552,2]
[399569681,1766503848217,-151.0,0.00011552,2]